fUSD/lending_fUSD_20240422
["ID","MTS","AMOUNT","RATE_DAILY","PERIOD"]
[323221187,1713817970394,-587.95,0.00016164,2]
[323221188,1713817970403,-1126.73,0.00016164,2]
[323221189,1713817970413,-1027.81,0.00016164,2]
[323221190,1713817970422,-500.0,0.00016164,2]
[323221191,1713817970431,-895.63,0.00016164,2]
[323221192,1713817970440,-500.0,0.00016164,2]
[323221193,1713817970450,-303.14775704,0.00016164,2]
[323221194,1713817970459,-560.73,0.00016164,2]
[323221195,1713817970468,-242.40222207,0.00016164,2]
[323221196,1713817970477,-500.0,0.00016164,2]
[323221197,1713817970486,-541.08,0.00016164,2]
[323221198,1713817970495,-500.0,0.00016164,2]
[323221199,1713817970505,-706.11,0.00016164,2]
[323221200,1713817970514,-629.02,0.00016164,2]
[323221201,1713817970522,-584.95,0.00016164,2]
[323221202,1713817970533,-500.0,0.00016164,2]
[323221203,1713817970542,-1117.61,0.00016164,2]
[323221204,1713817970551,-500.0,0.00016164,2]
[323221205,1713817970560,-1070.74,0.00016164,2]
[323221206,1713817970570,-1292.86,0.00016164,2]
[323221207,1713817970579,-1409.26,0.00016164,2]
[323221208,1713817970588,-895.28,0.00016164,2]
[323221209,1713817970597,-627.63,0.00016164,2]
[323221210,1713817970618,-1508.56,0.00016164,2]
[323221211,1713817970643,-548.25314159,0.00016164,2]
[323221212,1713817970652,-632.96,0.00016164,2]
[323221213,1713817970662,-500.0,0.00016164,2]
[323221214,1713817970671,-1031.2,0.00016164,2]
[323221215,1713817970680,-500.0,0.00016164,2]
[323221216,1713817970689,-500.0,0.00016164,2]
[323221217,1713817970699,-718.9,0.00016164,2]
[323221218,1713817970709,-969.56,0.00016164,2]
[323221219,1713817970718,-500.0,0.00016164,2]
[323221220,1713817970728,-500.0,0.00016164,2]
[323221221,1713817970737,-500.0,0.00016164,2]
[323221222,1713817970747,-1375.45,0.00016164,2]
[323221223,1713817970757,-643.12,0.00016164,2]
[323221224,1713817970766,-1338.67,0.00016164,2]
[323221225,1713817970776,-1299.86,0.00016164,2]
[323221226,1713817970785,-1086.66,0.00016164,2]
[323221227,1713817970794,-1120.16,0.00016164,2]
[323221228,1713817970803,-960.06,0.00016164,2]
[323221229,1713817970813,-500.0,0.00016164,2]
[323221230,1713817970823,-534.21,0.00016164,2]
[323221231,1713817970832,-753.19,0.00016164,2]
[323221232,1713817970841,-500.0,0.00016164,2]
[323221233,1713817970850,-811.84,0.00016164,2]
[323221234,1713817970859,-500.0,0.00016164,2]
[323221235,1713817970868,-1092.53,0.00016164,2]
[323221236,1713817970879,-202.4166437,0.00016164,2]
[323221237,1713817970890,-546.54,0.00016164,2]
[323221238,1713817970899,-1749.53,0.00016164,2]
[323221239,1713817970908,-500.0,0.00016164,2]
[323221240,1713817970917,-500.0,0.00016164,2]
[323221241,1713817970928,-500.0,0.00016164,2]
[323221242,1713817970937,-1083.17,0.00016164,2]
[323221243,1713817970946,-500.0,0.00016164,2]
[323221244,1713817970957,-500.0,0.00016164,2]
[323221245,1713817970966,-506.83998659,0.00016164,2]
[323221246,1713817970975,-500.0,0.00016164,2]
[323221247,1713817970985,-1474.11,0.00016164,2]
[323221248,1713817970994,-1939.69,0.00016164,2]
[323221249,1713817971004,-1150.37,0.00016164,2]
[323221250,1713817971013,-500.0,0.00016164,2]
[323221251,1713817971023,-1191.57,0.00016164,2]
[323221252,1713817971032,-873.37,0.00016164,2]
[323221253,1713817971042,-500.0,0.00016164,2]
[323221254,1713817971051,-548.01,0.00016164,2]
[323221255,1713817971061,-1713.21,0.00016164,2]
[323221256,1713817971071,-860.95,0.00016164,2]
[323221257,1713817971080,-778.64,0.00016164,2]
[323221258,1713817971089,-583.38,0.00016164,2]
[323221259,1713817971099,-983.83,0.00016164,2]
[323221260,1713817971109,-848.86,0.00016164,2]
[323221261,1713817971118,-500.0,0.00016164,2]
[323221262,1713817971127,-1645.42,0.00016164,2]
[323221263,1713817971137,-991.23,0.00016164,2]
[323221264,1713817971146,-650.08,0.00016164,2]
[323221265,1713817971155,-919.27,0.00016164,2]
[323221266,1713817971165,-849.94,0.00016164,2]
[323221267,1713817971175,-965.68,0.00016164,2]
[323221268,1713817971185,-648.35,0.00016164,2]
[323221269,1713817971194,-653.61,0.00016164,2]
[323221270,1713817971203,-849.99,0.00016164,2]
[323221271,1713817971213,-872.51,0.00016164,2]
[323221272,1713817971222,-883.24,0.00016164,2]
[323221273,1713817971231,-1446.77,0.00016164,2]
[323221274,1713817971241,-668.79,0.00016164,2]
[323221275,1713817971250,-500.0,0.00016164,2]
[323221276,1713817971259,-1711.08,0.00016164,2]
[323221277,1713817971268,-586.1,0.00016164,2]
[323221278,1713817971278,-643.67,0.00016164,2]
[323221279,1713817971288,-500.0,0.00016164,2]
[323221280,1713817971299,-1611.58,0.00016164,2]
[323221281,1713817971308,-500.0,0.00016164,2]
[323221282,1713817971318,-710.31,0.00016164,2]
[323221283,1713817971327,-941.73,0.00016164,2]
[323221284,1713817971336,-1122.42,0.00016164,2]
[323221285,1713817971346,-585.05,0.00016164,2]
[323221286,1713817971355,-500.0,0.00016164,2]
[323221287,1713817971364,-758.68,0.00016164,2]
[323221288,1713817971374,-844.75,0.00016164,2]
[323221289,1713817971383,-500.0,0.00016164,2]
[323221290,1713817971392,-1156.31,0.00016164,2]
[323221291,1713817971401,-905.56,0.00016164,2]
[323221292,1713817971411,-1225.61,0.00016164,2]
[323221293,1713817971421,-500.0,0.00016164,2]
[323221294,1713817971430,-762.49,0.00016164,2]
[323221295,1713817971439,-500.0,0.00016164,2]
[323221296,1713817971449,-580.72,0.00016164,2]
[323221297,1713817971458,-1207.15,0.00016164,2]
[323221298,1713817971467,-500.0,0.00016164,2]
[323221299,1713817971477,-500.0,0.00016164,2]
[323221300,1713817971487,-847.4,0.00016164,2]
[323221301,1713817971497,-500.0,0.00016164,2]
[323221302,1713817971506,-889.65,0.00016164,2]
[323221303,1713817971517,-1857.12,0.00016164,2]
[323221304,1713817971526,-1458.35,0.00016164,2]
[323221305,1713817971537,-1346.71,0.00016164,2]
[323221306,1713817971547,-797.75,0.00016164,2]
[323221307,1713817971556,-1384.06,0.00016164,2]
[323221308,1713817971566,-838.1,0.00016164,2]
[323221309,1713817971575,-500.0,0.00016164,2]
[323221310,1713817971584,-666.81,0.00016164,2]
[323221311,1713817971594,-500.0,0.00016164,2]
[323221312,1713817971603,-500.0,0.00016164,2]
[323221313,1713817971612,-562.19,0.00016164,2]
[323221314,1713817971621,-515.46,0.00016164,2]
[323221315,1713817971631,-500.0,0.00016164,2]
[323221316,1713817971639,-500.0,0.00016164,2]
[323221317,1713817971648,-1234.42,0.00016164,2]
[323221318,1713817971659,-1329.82,0.00016164,2]
[323221319,1713817971668,-500.0,0.00016164,2]
[323221320,1713817971677,-982.2,0.00016164,2]
[323221321,1713817971686,-500.0,0.00016164,2]
[323221322,1713817971695,-2343.61,0.00016164,2]
[323221323,1713817971704,-1458.64,0.00016164,2]
[323221324,1713817971714,-500.0,0.00016164,2]
[323221325,1713817971724,-847.85,0.00016164,2]
[323221326,1713817971733,-500.0,0.00016164,2]
[323221327,1713817971742,-1545.79,0.00016164,2]
[323221328,1713817971751,-3597.84,0.00016164,2]
[323221329,1713817971761,-715.1,0.00016164,2]
[323221330,1713817971770,-1733.17,0.00016164,2]
[323221331,1713817971779,-1489.81,0.00016164,2]
[323221332,1713817971789,-1331.5,0.00016164,2]
[323221333,1713817971798,-500.0,0.00016164,2]
[323221334,1713817971808,-500.0,0.00016164,2]
[323221335,1713817971818,-1524.01,0.00016164,2]
[323221336,1713817971827,-1445.52,0.00016164,2]
[323221337,1713817971836,-521.23,0.00016164,2]
[323221338,1713817971845,-1681.34,0.00016164,2]
[323221339,1713817971855,-1162.45,0.00016164,2]
[323221340,1713817971864,-1395.37,0.00016164,2]
[323221341,1713817971874,-619.96,0.00016164,2]
[323221342,1713817971887,-255.26,0.00016164,2]
[323221343,1713817971896,-500.0,0.00016164,2]
[323221344,1713817971905,-850.51,0.00016164,2]
[323221345,1713817971915,-500.0,0.00016164,2]
[323221346,1713817971925,-651.79,0.00016164,2]
[323221347,1713817971935,-500.0,0.00016164,2]
[323221348,1713817971943,-1280.9,0.00016164,2]
[323221349,1713817971954,-500.0,0.00016164,2]
[323221350,1713817971964,-1459.47,0.00016164,2]
[323221351,1713817971972,-500.0,0.00016164,2]
[323221352,1713817971982,-500.0,0.00016164,2]
[323221353,1713817971991,-534.9,0.00016164,2]
[323221354,1713817972000,-500.0,0.00016164,2]
[323221355,1713817972009,-538.6,0.00016164,2]
[323221356,1713817972018,-1610.79,0.00016164,2]
[323221357,1713817972027,-500.0,0.00016164,2]
[323221358,1713817972037,-500.0,0.00016164,2]
[323221359,1713817972046,-514.88,0.00016164,2]
[323221360,1713817972055,-537.01,0.00016164,2]
[323221361,1713817972065,-500.0,0.00016164,2]
[323221362,1713817972075,-1363.17,0.00016164,2]
[323221363,1713817972084,-786.16,0.00016164,2]
[323221364,1713817972094,-746.38,0.00016164,2]
[323221365,1713817972103,-788.48,0.00016164,2]
[323221366,1713817972113,-500.0,0.00016164,2]
[323221367,1713817972122,-1371.5,0.00016164,2]
[323221368,1713817972131,-500.0,0.00016164,2]
[323221369,1713817972140,-572.35,0.00016164,2]
[323221370,1713817972150,-500.0,0.00016164,2]
[323221371,1713817972158,-1080.61,0.00016164,2]
[323221372,1713817972167,-1639.44,0.00016164,2]
[323221373,1713817972176,-500.0,0.00016164,2]
[323221374,1713817972186,-927.48,0.00016164,2]
[323221375,1713817972195,-2417.44,0.00016164,2]
[323221376,1713817972204,-1053.33,0.00016164,2]
[323221377,1713817972213,-820.45,0.00016164,2]
[323221378,1713817972223,-500.0,0.00016164,2]
[323221379,1713817972232,-500.0,0.00016164,2]
[323221380,1713817972241,-616.6,0.00016164,2]
[323221381,1713817972251,-1496.35,0.00016164,2]
[323221382,1713817972260,-500.0,0.00016164,2]
[323221383,1713817972269,-1901.34,0.00016164,2]
[323221384,1713817972278,-1504.69,0.00016164,2]
[323221385,1713817972289,-531.85,0.00016164,2]
[323221386,1713817972298,-1164.49,0.00016164,2]
[323221387,1713817972308,-549.16,0.00016164,2]
[323221388,1713817972317,-1596.3,0.00016164,2]
[323221389,1713817972326,-1438.6,0.00016164,2]
[323221390,1713817972335,-1493.64,0.00016164,2]
[323221391,1713817972344,-500.0,0.00016164,2]
[323221392,1713817972353,-693.72,0.00016164,2]
[323221393,1713817972362,-500.0,0.00016164,2]
[323221394,1713817972371,-889.74,0.00016164,2]
[323221395,1713817972380,-1296.17,0.00016164,2]
[323221396,1713817972389,-1184.52,0.00016164,2]
[323221397,1713817972398,-1024.32,0.00016164,2]
[323221398,1713817972407,-1243.7,0.00016164,2]
[323221399,1713817972416,-675.02,0.00016164,2]
[323221400,1713817972426,-500.0,0.00016164,2]
[323221401,1713817972435,-2073.0,0.00016164,2]
[323221402,1713817972444,-1364.07,0.00016164,2]
[323221403,1713817972453,-500.0,0.00016164,2]
[323221404,1713817972462,-1245.39,0.00016164,2]
[323221405,1713817972472,-500.0,0.00016164,2]
[323221406,1713817972482,-1343.23,0.00016164,2]
[323221407,1713817972491,-785.15,0.00016164,2]
[323221408,1713817972500,-500.0,0.00016164,2]
[323221409,1713817972511,-1627.92,0.00016164,2]
[323221410,1713817972520,-1215.57,0.00016164,2]
[323221411,1713817972529,-1663.91,0.00016164,2]
[323221412,1713817972539,-500.0,0.00016164,2]
[323221413,1713817972548,-378.37676022,0.00016164,2]
[323221414,1713817972558,-1013.21,0.00016164,2]
[323221415,1713817972566,-500.0,0.00016164,2]
[323221416,1713817972575,-1496.62,0.00016164,2]
[323221417,1713817972584,-781.7,0.00016164,2]
[323221418,1713817972593,-1208.61,0.00016164,2]
[323221419,1713817972603,-1291.68,0.00016164,2]
[323221420,1713817972612,-500.0,0.00016164,2]
[323221421,1713817972621,-1167.1,0.00016164,2]
[323221422,1713817972630,-636.48,0.00016164,2]
[323221423,1713817972640,-979.58,0.00016164,2]
[323221424,1713817972649,-751.72,0.00016164,2]
[323221425,1713817972659,-1192.84,0.00016164,2]
[323221426,1713817972668,-507.91,0.00016164,2]
[323221427,1713817972678,-1367.4,0.00016164,2]
[323221428,1713817972688,-1643.75,0.00016164,2]
[323221429,1713817972697,-525.05,0.00016164,2]
[323221430,1713817972707,-1037.47,0.00016164,2]
[323221431,1713817972718,-500.0,0.00016164,2]
[323221432,1713817972727,-1478.09,0.00016164,2]
[323221433,1713817972736,-535.15,0.00016164,2]
[323221434,1713817972746,-500.0,0.00016164,2]
[323221435,1713817972756,-504.89,0.00016164,2]
[323221436,1713817972767,-627.98,0.00016164,2]
[323221437,1713817972777,-849.45,0.00016164,2]
[323221438,1713817972788,-1578.31,0.00016164,2]
[323221439,1713817972797,-1198.94,0.00016164,2]
[323221440,1713817972806,-2383.31,0.00016164,2]
[323221441,1713817972815,-2746.92,0.00016164,2]
[323221442,1713817972826,-500.0,0.00016164,2]
[323221443,1713817972835,-1045.49,0.00016164,2]
[323221444,1713817972845,-500.0,0.00016164,2]
[323221445,1713817972854,-1276.4,0.00016164,2]
[323221446,1713817972864,-1445.62,0.00016164,2]
[323221447,1713817972874,-1072.72,0.00016164,2]
[323221448,1713817972887,-500.0,0.00016164,2]
[323221449,1713817972896,-500.0,0.00016164,2]
[323221450,1713817972905,-3284.68,0.00016164,2]
[323221451,1713817972915,-500.0,0.00016164,2]
[323221452,1713817972925,-2296.08,0.00016164,2]
[323221453,1713817972935,-851.02,0.00016164,2]
[323221454,1713817972944,-1106.72,0.00016164,2]
[323221455,1713817972954,-500.0,0.00016164,2]
[323221456,1713817972964,-788.12,0.00016164,2]
[323221457,1713817972974,-1533.64,0.00016164,2]
[323221458,1713817972983,-2404.29,0.00016164,2]
[323221459,1713817972993,-1657.26,0.00016164,2]
[323221460,1713817973002,-500.0,0.00016164,2]
[323221461,1713817973012,-2538.83,0.00016164,2]
[323221462,1713817973022,-500.0,0.00016164,2]
[323221463,1713817973031,-500.0,0.00016164,2]
[323221464,1713817973042,-552.91,0.00016164,2]
[323221465,1713817973051,-1596.02,0.00016164,2]
[323221466,1713817973061,-1577.46,0.00016164,2]
[323221467,1713817973071,-500.0,0.00016164,2]
[323221468,1713817973081,-1894.81,0.00016164,2]
[323221469,1713817973090,-2000.81,0.00016164,2]
[323221470,1713817973100,-1468.28,0.00016164,2]
[323221471,1713817973110,-595.04,0.00016164,2]
[323221472,1713817973119,-1219.08,0.00016164,2]
[323221473,1713817973129,-881.21,0.00016164,2]
[323221474,1713817973139,-2218.86,0.00016164,2]
[323221475,1713817973148,-533.19,0.00016164,2]
[323221476,1713817973158,-574.21026256,0.00016164,2]
[323221477,1713817973167,-934.67,0.00016164,2]
[323221478,1713817973177,-525.62,0.00016164,2]
[323221479,1713817973187,-500.0,0.00016164,2]
[323221480,1713817973196,-702.91,0.00016164,2]
[323221481,1713817973206,-3676.74,0.00016164,2]
[323221482,1713817973216,-548.67,0.00016164,2]
[323221483,1713817973225,-500.0,0.00016164,2]
[323221484,1713817973235,-1527.36,0.00016164,2]
[323221485,1713817973244,-2497.52,0.00016164,2]
[323221486,1713817973254,-1077.98,0.00016164,2]
[323221487,1713817973264,-1214.09,0.00016164,2]
[323221488,1713817973273,-960.51,0.00016164,2]
[323221489,1713817973283,-1969.14,0.00016164,2]
[323221490,1713817973293,-1099.35,0.00016164,2]
[323221491,1713817973302,-1706.31,0.00016164,2]
[323221492,1713817973312,-1214.51,0.00016164,2]
[323221493,1713817973322,-837.97,0.00016164,2]
[323221494,1713817973332,-500.0,0.00016164,2]
[323221495,1713817973342,-500.0,0.00016164,2]
[323221496,1713817973351,-1339.69,0.00016164,2]
[323221497,1713817973361,-2687.48,0.00016164,2]
[323221498,1713817973371,-1917.71,0.00016164,2]
[323221499,1713817973382,-500.0,0.00016164,2]
[323221500,1713817973392,-795.76,0.00016164,2]
[323221501,1713817973402,-500.0,0.00016164,2]
[323221502,1713817973411,-500.0,0.00016164,2]
[323221503,1713817973421,-1253.15,0.00016164,2]
[323221504,1713817973431,-1479.38,0.00016164,2]
[323221505,1713817973441,-946.21,0.00016164,2]
[323221506,1713817973451,-755.1,0.00016164,2]
[323221507,1713817973460,-500.0,0.00016164,2]
[323221508,1713817973470,-705.28,0.00016164,2]
[323221509,1713817973479,-856.04,0.00016164,2]
[323221510,1713817973490,-500.0,0.00016164,2]
[323221511,1713817973499,-1065.24,0.00016164,2]
[323221512,1713817973510,-1085.95,0.00016164,2]
[323221513,1713817973521,-586.95,0.00016164,2]
[323221514,1713817973531,-3909.96,0.00016164,2]
[323221515,1713817973542,-806.76,0.00016164,2]
[323221516,1713817973554,-1318.24,0.00016164,2]
[323221517,1713817973564,-1254.05,0.00016164,2]
[323221518,1713817973573,-956.54,0.00016164,2]
[323221519,1713817973585,-1335.71,0.00016164,2]
[323221520,1713817973594,-1092.89,0.00016164,2]
[323221521,1713817973605,-1047.55,0.00016164,2]
[323221522,1713817973615,-605.32,0.00016164,2]
[323221523,1713817973626,-500.0,0.00016164,2]
[323221524,1713817973636,-1295.55,0.00016164,2]
[323221525,1713817973646,-2415.41,0.00016164,2]
[323221526,1713817973655,-2338.02,0.00016164,2]
[323221527,1713817973666,-633.15,0.00016164,2]
[323221528,1713817973675,-630.63,0.00016164,2]
[323221529,1713817973686,-1073.37,0.00016164,2]
[323221530,1713817973696,-500.0,0.00016164,2]
[323221531,1713817973706,-723.42,0.00016164,2]
[323221532,1713817973716,-988.41,0.00016164,2]
[323221533,1713817973726,-1045.44,0.00016164,2]
[323221534,1713817973736,-2293.72,0.00016164,2]
[323221535,1713817973746,-1265.46,0.00016164,2]
[323221536,1713817973757,-561.76,0.00016164,2]
[323221537,1713817973769,-648.54,0.00016164,2]
[323221538,1713817973779,-500.0,0.00016164,2]
[323221539,1713817973790,-1423.76,0.00016164,2]
[323221540,1713817973800,-754.54,0.00016164,2]
[323221541,1713817973811,-766.12,0.00016164,2]
[323221542,1713817973822,-1066.26,0.00016164,2]
[323221543,1713817973833,-730.36,0.00016164,2]
[323221544,1713817973843,-630.54,0.00016164,2]
[323221545,1713817973854,-1476.18,0.00016164,2]
[323221546,1713817973864,-1555.08,0.00016164,2]
[323221547,1713817973874,-1064.89,0.00016164,2]
[323221548,1713817973887,-1952.11,0.00016164,2]
[323221549,1713817973898,-909.66,0.00016164,2]
[323221550,1713817973910,-500.0,0.00016164,2]
[323221551,1713817973923,-500.0,0.00016164,2]
[323221552,1713817973933,-801.08,0.00016164,2]
[323221553,1713817973943,-2542.4,0.00016164,2]
[323221554,1713817973958,-1323.06,0.00016164,2]
[323221555,1713817973968,-580.66,0.00016164,2]
[323221556,1713817973979,-1009.86,0.00016164,2]
[323221557,1713817973988,-996.9,0.00016164,2]
[323221558,1713817973998,-685.24,0.00016164,2]
[323221559,1713817974008,-751.49,0.00016164,2]
[323221560,1713817974018,-1254.19,0.00016164,2]
[323221561,1713817974028,-860.39,0.00016164,2]
[323221562,1713817974039,-4409.84,0.00016164,2]
[323221563,1713817974049,-513.13,0.00016164,2]
[323221564,1713817974059,-605.11,0.00016164,2]
[323221565,1713817974068,-1437.23,0.00016164,2]
[323221566,1713817974077,-1024.83,0.00016164,2]
[323221567,1713817974087,-794.18,0.00016164,2]
[323221568,1713817974098,-1182.95,0.00016164,2]
[323221569,1713817974108,-1314.8,0.00016164,2]
[323221570,1713817974118,-500.0,0.00016164,2]
[323221571,1713817974128,-1869.66,0.00016164,2]
[323221572,1713817974138,-983.81,0.00016164,2]
[323221573,1713817974148,-914.73,0.00016164,2]
[323221574,1713817974158,-876.01,0.00016164,2]
[323221575,1713817974169,-500.0,0.00016164,2]
[323221576,1713817974180,-878.84,0.00016164,2]
[323221577,1713817974190,-541.31,0.00016164,2]
[323221578,1713817974200,-894.0,0.00016164,2]
[323221579,1713817974210,-2061.61,0.00016164,2]
[323221580,1713817974221,-1124.13,0.00016164,2]
[323221581,1713817974231,-1403.67,0.00016164,2]
[323221582,1713817974242,-1325.09,0.00016164,2]
[323221583,1713817974251,-775.89,0.00016164,2]
[323221584,1713817974262,-1196.82,0.00016164,2]
[323221585,1713817974271,-1211.22,0.00016164,2]
[323221586,1713817974282,-1451.51,0.00016164,2]
[323221587,1713817974294,-1680.65,0.00016164,2]
[323221588,1713817974304,-1636.05,0.00016164,2]
[323221589,1713817974314,-922.47,0.00016164,2]
[323221590,1713817974324,-469.20549455,0.00016164,2]
[323221591,1713817974334,-500.0,0.00016164,2]
[323221592,1713817974343,-725.28,0.00016164,2]
[323221593,1713817974354,-816.4,0.00016164,2]
[323221594,1713817974364,-169.79832263,0.00016164,2]
[323221595,1713817974374,-526.67,0.00016164,2]
[323221596,1713817974385,-500.0,0.00016164,2]
[323221597,1713817974396,-500.0,0.00016164,2]
[323221598,1713817974406,-754.42,0.00016164,2]
[323221599,1713817974417,-1131.8,0.00016164,2]
[323221600,1713817974427,-1402.5,0.00016164,2]
[323221601,1713817974436,-500.0,0.00016164,2]
[323221602,1713817974446,-532.25,0.00016164,2]
[323221603,1713817974456,-787.9,0.00016164,2]
[323221604,1713817974466,-559.84,0.00016164,2]
[323221605,1713817974477,-1069.11,0.00016164,2]
[323221606,1713817974487,-1256.58,0.00016164,2]
[323221607,1713817974497,-628.34,0.00016164,2]
[323221608,1713817974507,-500.0,0.00016164,2]
[323221609,1713817974518,-624.97,0.00016164,2]
[323221610,1713817974528,-500.0,0.00016164,2]
[323221611,1713817974539,-1806.23,0.00016164,2]
[323221612,1713817974549,-1450.35,0.00016164,2]
[323221613,1713817974560,-1359.54,0.00016164,2]
[323221614,1713817974569,-500.0,0.00016164,2]
[323221615,1713817974579,-502.81,0.00016164,2]
[323221616,1713817974590,-1191.78,0.00016164,2]
[323221617,1713817974600,-888.12,0.00016164,2]
[323221618,1713817974610,-578.9,0.00016164,2]
[323221619,1713817974620,-1855.61,0.00016164,2]
[323221620,1713817974630,-583.38,0.00016164,2]
[323221621,1713817974640,-500.0,0.00016164,2]
[323221622,1713817974650,-1313.44,0.00016164,2]
[323221623,1713817974660,-1448.43,0.00016164,2]
[323221624,1713817974670,-500.0,0.00016164,2]
[323221625,1713817974680,-500.0,0.00016164,2]
[323221626,1713817974690,-500.0,0.00016164,2]
[323221627,1713817974700,-1028.72,0.00016164,2]
[323221628,1713817974710,-595.0,0.00016164,2]
[323221629,1713817974721,-547.89,0.00016164,2]
[323221630,1713817974731,-500.0,0.00016164,2]
[323221631,1713817974742,-1641.26,0.00016164,2]
[323221632,1713817974752,-1768.32,0.00016164,2]
[323221633,1713817974762,-500.0,0.00016164,2]
[323221634,1713817974771,-3339.2,0.00016164,2]
[323221635,1713817974781,-668.1,0.00016164,2]
[323221636,1713817974794,-863.77,0.00016164,2]
[323221637,1713817974805,-500.0,0.00016164,2]
[323221638,1713817974815,-1124.07,0.00016164,2]
[323221639,1713817974825,-557.13,0.00016164,2]
[323221640,1713817974835,-500.0,0.00016164,2]
[323221641,1713817974845,-562.12,0.00016164,2]
[323221642,1713817974855,-840.96,0.00016164,2]
[323221643,1713817974865,-816.6,0.00016164,2]
[323221644,1713817974875,-500.0,0.00016164,2]
[323221645,1713817974890,-500.0,0.00016164,2]
[323221646,1713817974900,-811.15,0.00016164,2]
[323221647,1713817974910,-1876.65,0.00016164,2]
[323221648,1713817974922,-1275.39,0.00016164,2]
[323221649,1713817974932,-500.0,0.00016164,2]
[323221650,1713817974942,-1190.54,0.00016164,2]
[323221651,1713817974953,-1082.13,0.00016164,2]
[323221652,1713817974964,-2584.59,0.00016164,2]
[323221653,1713817974974,-1247.63,0.00016164,2]
[323221654,1713817974984,-754.66,0.00016164,2]
[323221655,1713817974994,-1169.33,0.00016164,2]
[323221656,1713817975004,-3329.52,0.00016164,2]
[323221657,1713817975014,-500.0,0.00016164,2]
[323221658,1713817975024,-621.96,0.00016164,2]
[323221659,1713817975037,-500.0,0.00016164,2]
[323221660,1713817975339,-845.41,0.00016164,2]
[323221661,1713817975349,-755.77,0.00016164,2]
[323221662,1713817975359,-973.92,0.00016164,2]
[323221663,1713817975368,-1019.33,0.00016164,2]
[323221664,1713817975378,-549.92,0.00016164,2]
[323221665,1713817975387,-500.0,0.00016164,2]
[323221666,1713817975397,-500.0,0.00016164,2]
[323221667,1713817975406,-1233.41,0.00016164,2]
[323221668,1713817975416,-524.29,0.00016164,2]
[323221669,1713817975425,-730.26,0.00016164,2]
[323221670,1713817975435,-1250.58,0.00016164,2]
[323221671,1713817975444,-500.0,0.00016164,2]
[323221672,1713817975454,-590.06,0.00016164,2]
[323221673,1713817975463,-500.0,0.00016164,2]
[323221674,1713817975472,-1827.41,0.00016164,2]
[323221675,1713817975482,-744.02,0.00016164,2]
[323221676,1713817975493,-1751.5,0.00016164,2]
[323221677,1713817975503,-500.0,0.00016164,2]
[323221678,1713817975513,-1503.69,0.00016164,2]
[323221679,1713817975522,-500.0,0.00016164,2]
[323221680,1713817975531,-1054.98,0.00016164,2]
[323221681,1713817975542,-500.0,0.00016164,2]
[323221682,1713817975551,-527.77,0.00016164,2]
[323221683,1713817975561,-1757.63,0.00016164,2]
[323221684,1713817975570,-1390.28,0.00016164,2]
[323221685,1713817975579,-543.73,0.00016164,2]
[323221686,1713817975589,-800.72,0.00016164,2]